Cogmind - Beta 12 X1 @@@ ROGUE MODE // 2022.07.24 @ 09:50:42 Player: tourn Result: Destroyed by S-10 Pest with Light Assault Rifle Performance ------------- Evolutions (2) 1000 Regions Visited (5) 1000 Robots Destroyed (60) 300 Value Destroyed (1481) 1481 Prototype IDs (2) 40 Alien Tech Used (0) 0 Bonus (-10) -10 TOTAL SCORE: 3811 Bonus ------- High Alert Combat Kills 45 Follower Combat Kills 82 Friendly Fire -137 Cogmind --------- Core Integrity 0/550 Matter 157/300 Energy 9/100 System Corruption 0% Temperature Cool (0) Movement Treading (145) Location -8/Materials Parts ------- > --- POWER (1) -------- (None) > --- PROPULSION (3) --- Advanced Treads > --- UTILITY (5) ------ Terrain Scan Processor > --- WEAPON (2) ------- EM Shotgun > --- INVENTORY (5) ---- Compact Wheel Large Storage Unit Huge Storage Unit Improved Medium Laser Peak State ------------ > --- POWER ------------ (None) > --- PROPULSION ------- Armored Treads Wheel Wheel > --- UTILITY ---------- Large Storage Unit Hardened Light Armor Plating > --- WEAPON ----------- Advanced Beam Rifle Bore Cannon > --- INVENTORY -------- Wheel Compact Wheel Huge Storage Unit Improved Terrain Scanner Terrain Scan Processor EM Shotgun Small Laser Particle Gun Improved Medium Laser Heavy Assault Rifle Autogun Datajack Mace [Rating: 19] Favorites ----------- Power Light Nuclear Core Engine Ion Engine Power Core Light Nuclear Core Propulsion Wheel Treads Light Treads Leg Aluminum Leg Wheel Wheel Utility Large Storage Unit Device Structural Scanner Storage Large Storage Unit Processor Terrain Scan Processor Protection Light Armor Plating Weapon Medium Laser Energy Gun Medium Laser Ballistic Gun Assault Rifle Ballistic Cannon Bore Cannon Launcher Rocket Launcher Special Weapon Mining Laser Impact Weapon Mace Special Melee Weapon Datajack Build | -11 -10 -10 -9 -9 -8 ------- Run | Scr Mat Min Mat Min Mat Slots Evolved 4 | . . . 2 . 2 Power . | . . . . . . Propulsion 1 | . . . 1 . . Utility 3 | . . . 1 . 2 Weapon . | . . . . . . Parts Attached 75 | 1 13 14 27 9 11 Power 4 | . 1 . 2 1 . Engine 3 | . . . 2 1 . Core 1 | . 1 . . . . Reactor . | . . . . . . Propulsion 26 | . 5 7 10 1 3 Treads 9 | . 1 3 3 . 2 Leg . | . . . . . . Wheel 17 | . 4 4 7 1 1 Hover . | . . . . . . Flight . | . . . . . . Utility 15 | 1 4 1 6 . 3 Device 5 | 1 . . 4 . . Storage 3 | . 2 . . . 1 Processor 1 | . . . . . 1 Hackware . | . . . . . . Protection 6 | . 2 1 2 . 1 Artifact . | . . . . . . Weapon 30 | . 3 6 9 7 5 Energy Gun 14 | . 1 3 4 3 3 Energy Cannon . | . . . . . . Ballistic Gun 3 | . 2 . 1 . . Ballistic Cannon 4 | . . 2 1 . 1 Launcher 6 | . . . 1 4 1 Special Weapon 1 | . . 1 . . . Impact Weapon 1 | . . . 1 . . Slashing Weapon . | . . . . . . Piercing Weapon . | . . . . . . Special Melee Weapon 1 | . . . 1 . . Unidentified Prototypes 2 | . . . 1 . 1 Parts Lost 25 | . 4 4 6 2 9 Power 4 | . . . 2 1 1 Propulsion 9 | . 2 1 2 . 4 Utility 6 | . . 1 2 1 2 Weapon 6 | . 2 2 . . 2 Highest Loss Streak 7 | . 2 3 2 1 7 To Critical Strikes . | . . . . . . Average Slot Usage (%) 92 | . 99 99 95 99 41 Engine 5 | . 7 . 8 11 1 Core 6 | . 6 14 . . . Treads 8 | . . 22 4 . 2 Wheel 19 | . 26 5 28 33 12 Device 6 | . 9 . 13 11 1 Storage 12 | . 14 14 11 11 5 Protection 8 | . 4 14 6 10 2 Energy Gun 16 | . 5 25 15 20 9 Ballistic Gun 7 | . 22 1 5 . . Naked Turns 6 | . . . . . 6 Heaviest Build 92 | 15 92 39 37 37 36 Greatest Support 40 | 20 26 40 40 36 36 Greatest Overweight (x) 3 | . 3 1 1 1 3 Average Overweight (x) . | . 2 . . . . Largest Inventory Capacity 25 | 8 25 15 15 15 15 Average Capacity 16 | 8 22 15 15 15 11 Most Carried 21 | 8 21 15 15 15 15 Average Carried 14 | 6 15 14 14 14 10 Final Capacity 15 | 8 15 15 15 15 5 Final Carried 15 | 8 15 15 15 14 4 Class Distribution -------------------- 76% | Mutant 23% | Scavenger-Mutant Dominant Class ---------------- Mutant | -10/Materials Mutant | -10/Mines Scavenger-Mutant | -9/Materials Scavenger-Mutant | -9/Mines Mutant | -8/Materials Resources | -11 -10 -10 -9 -9 -8 ----------- Run | Scr Mat Min Mat Min Mat Matter Collected 1421 | 219 411 133 430 142 86 Remotely . | . . . . . . Salvage Created 1823 | 103 422 289 628 210 171 Parts 124 | 8 32 30 31 17 6 Haulers Intercepted . | . . . . . . Recyclers Shooed 2 | 1 . . 1 . . Parts Field Recycled . | . . . . . . Retrieved Matter . | . . . . . . Parts Self-Destructed . | . . . . . . Prevented . | . . . . . . Kills | -11 -10 -10 -9 -9 -8 ------- Run | Scr Mat Min Mat Min Mat Combat Hostiles Destroyed 49 | . 12 8 14 11 4 Guns 32 | . 12 6 11 1 2 Cannons 3 | . . 2 . . 1 AOE 13 | . . . 3 10 . Classes Destroyed 10 | 2 3 1 3 . 1 Worker 1 | . . . 1 . . Builder 3 | . 1 2 . . . Tunneler 1 | 1 . . . . . Recycler 4 | 1 . . 1 2 . Watcher 1 | . . . 1 . . Swarmer 22 | . 3 4 3 11 1 Grunt 21 | . 9 2 8 . 2 Duelist 1 | . . . 1 . . Sentry 5 | . . 2 3 . . Heavy 1 | . . . . . 1 Best Kill Streak 8 | 2 2 2 8 5 1 Combat Bots Only 6 | . 2 2 6 3 1 Max Kills in Single Turn 3 | 1 1 1 3 3 1 Gunslinging . | . . . . . . Exploded 3 | . . . 3 3 . Melee . | . . . . . . Uniques/NPCs Destroyed . | . . . . . . Combat | -11 -10 -10 -9 -9 -8 -------- Run | Scr Mat Min Mat Min Mat Damage Taken 3685 | . 622 384 797 347 1535 Core 986 | . 121 54 139 121 551 Absorbed by Shields . | . . . . . . Core Remaining (%) 55 | 100 . 30 . 35 . Volleys Fired 185 | 3 60 22 49 15 36 Largest 2 | 2 2 2 2 2 2 Hottest 140 | 60 60 140 115 112 117 Shots Fired 328 | 6 120 39 94 22 47 Gun 295 | 6 120 36 90 14 29 Cannon 19 | . . 2 2 . 15 Launcher 13 | . . . 2 8 3 Special 1 | . . 1 . . . Kinetic 161 | 3 106 3 34 . 15 Thermal 116 | . . 21 58 14 23 Explosive 13 | . . . 2 8 3 Electromagnetic 38 | 3 14 15 . . 6 Robot Hit Streak 15 | 4 9 12 15 11 7 Robot Miss Streak 3 | . 3 2 3 2 3 Penetration Max 1 | . . . . . 1 Secondary Targets 1 | . . . 1 . . Max Gunslinging Chain 1 | . . . 1 . . Shots Hit Robots 205 | 4 72 22 65 14 28 Core Hits 89 | 3 23 14 23 14 12 Critical Kills . | . . . . . . Critical Parts Destroyed 6 | . 1 . . . 5 Critical Strikes 10 | . 1 3 1 . 5 Burn 4 | . . 3 1 . . Destroy 6 | . 1 . . . 5 Melee Attacks 1 | . . . 1 . . Impact 1 | . . . 1 . . Slashing . | . . . . . . Piercing . | . . . . . . Sneak Attacks . | . . . . . . Combat Hostiles . | . . . . . . Follow-up Attacks . | . . . . . . Damage Inflicted 3859 | 47 812 294 1164 774 768 Guns 2586 | 47 812 249 949 195 334 Cannons 148 | . . 21 . . 127 Explosions 1084 | . . . 215 579 290 Melee . | . . . . . . Ramming 17 | . . . . . 17 Kinetic 1206 | 35 712 21 311 . 127 Thermal 1351 | . . 174 701 195 281 Explosive 1021 | . . . 152 579 290 Electromagnetic 264 | 12 100 99 . . 53 Impact . | . . . . . . Slashing . | . . . . . . Piercing . | . . . . . . Highest Corruption 2 | . 2 2 . . . Average Corruption 2 | . 2 2 . . . Corruption Purged . | . . . . . . Corruption Blocked . | . . . . . . Effects 18 | . 2 16 . . . Message Errors 3 | . . 3 . . . Matter Fused 2 | . . 2 . . . Heat Flow Errors 3 | . . 3 . . . Energy Discharges 3 | . . 3 . . . Parts Rejected 1 | . 1 . . . . Data Loss (minor) 2 | . . 2 . . . Data Loss (major) 3 | . 1 2 . . . Misfires 1 | . . 1 . . . Overload Shots . | . . . . . . Overflow Damage 108 | . . . 64 44 . Projectiles . | . . . . . . Explosions 108 | . . . 64 44 . Melee . | . . . . . . Knockbacks 6 | . . . . . 6 Impact 1 | . . . . . 1 Kinetic 4 | . . . . . 4 Secondary 1 | . . . . . 1 Self-Inflicted Damage 306 | . . . 78 159 69 Shots 9 | . . . 2 5 2 Rammed 2 | . . . . . 2 Targets Rammed 2 | . . . . . 2 Kicked . | . . . . . . Crushed . | . . . . . . Highest Temperature 248 | . 120 238 248 178 205 Average Temperature 64 | . 31 83 60 67 73 Received Heat Transfer 1431 | . 333 174 249 . 675 Effects 3 | . . 2 . . 1 Energy Bleed 2 | . . 2 . . . Interference 1 | . . . . . 1 Siege Activations . | . . . . . . Robots Corrupted . | . . . . . . Combat Hostiles . | . . . . . . Parts Fried . | . . . . . . Impact Corruptions . | . . . . . . Robots Melted 1 | . . . . . 1 Combat Hostiles 1 | . . . . . 1 Parts Melted 15 | . . 2 8 1 4 Heat Transferred 3480 | . . 716 1802 407 555 Parts Sabotaged . | . . . . . . Parts Stolen . | . . . . . . Parts Stripped . | . . . . . . Power Chain Reactions . | . . . . . . Missiles Intercepted . | . . . . . . Alert | -11 -10 -10 -9 -9 -8 ------- Run | Scr Mat Min Mat Min Mat Peak Influence 691 | 10 160 210 601 691 442 Initial 265 | . 6 15 27 156 265 Average 161 | 8 57 58 303 383 317 Maximum Alert Level 2 | . . 1 2 2 2 Low Security (%) 62 | 100 100 89 22 3 . Level 1 28 | . . 10 55 49 95 Level 2 9 | . . . 21 46 4 Level 3 . | . . . . . . Level 4 . | . . . . . . Level 5 . | . . . . . . High Security . | . . . . . . Max Security . | . . . . . . Squads Dispatched 6 | . 3 . 1 . 2 Investigation 2 | . 1 . 1 . . Extermination . | . . . . . . Reinforcement 4 | . 2 . . . 2 Assault . | . . . . . . Garrison . | . . . . . . Intercept . | . . . . . . Searches Triggered . | . . . . . . Construction Impeded 1 | . . . . . 1 Haulers Reinforced . | . . . . . . Active Scanning Responses . | . . . . . . Cargo Convoy Interrupts . | . . . . . . Stealth | -11 -10 -10 -9 -9 -8 --------- Run | Scr Mat Min Mat Min Mat Distress Signals 5 | . 2 . 3 . . Communications Jammed . | . . . . . . Distress Signals . | . . . . . . Times Spotted 88 | . 21 10 23 12 22 Peak Tracking Total 11 | . 4 2 6 3 11 Tactical Retreats 4 | . . . 1 . 3 Traps | -11 -10 -10 -9 -9 -8 ------- Run | Scr Mat Min Mat Min Mat Traps Triggered 1 | . 1 . . . . Indirectly . | . . . . . . Trap Hack Attempts . | . . . . . . Triggered . | . . . . . . Disarmed . | . . . . . . Reprogrammed . | . . . . . . Reused . | . . . . . . Traps Extracted . | . . . . . . Installed . | . . . . . . Triggered . | . . . . . . Machines | -11 -10 -10 -9 -9 -8 ---------- Run | Scr Mat Min Mat Min Mat Machines Disabled 13 | . 1 2 3 5 2 Max in Single Turn 4 | . 1 1 2 4 1 Machines Sabotaged . | . . . . . . Garrisons Compromised . | . . . . . . Overloaded Fab Kills . | . . . . . . Hacking | -11 -10 -10 -9 -9 -8 --------- Run | Scr Mat Min Mat Min Mat Machines Accessed 5 | . 3 . 2 . . Terminals 5 | . 3 . 2 . . Fabricators . | . . . . . . Repair Stations . | . . . . . . Recycling Units . | . . . . . . Scanalyzers . | . . . . . . Garrison Access . | . . . . . . Total Hacks 17 | . 10 . 7 . . Successful 7 | . 4 . 3 . . Failed 10 | . 6 . 4 . . Catastrophic 2 | . 1 . 1 . . Database Lockouts . | . . . . . . Manual 14 | . 8 . 6 . . Terminals 17 | . 10 . 7 . . Fabricators . | . . . . . . Repair Stations . | . . . . . . Recycling Units . | . . . . . . Scanalyzers . | . . . . . . Garrison Access . | . . . . . . Terminal Hacks 6 | . 4 . 2 . . Robot Analysis 2 | . . . 2 . . Emergency Access Points 1 | . 1 . . . . Alert Level 1 | . 1 . . . . Unreport Threat 1 | . 1 . . . . Zone Layout 1 | . 1 . . . . Fabricator Hacks . | . . . . . . Repair Station Hacks . | . . . . . . Recycling Unit Hacks . | . . . . . . Scanalyzer . | . . . . . . Garrison Access Hacks . | . . . . . . Unauthorized Hacks 1 | . . . 1 . . Terminals 1 | . . . 1 . . Botnet 1 | . . . 1 . . Fabricators . | . . . . . . Repair Stations . | . . . . . . Recycling Units . | . . . . . . Scanalyzers . | . . . . . . Garrison Access . | . . . . . . Data Cores Recovered . | . . . . . . Used . | . . . . . . Hacking Detections 5 | . 3 . 2 . . Full Trace Events 1 | . 1 . . . . Feedback Events . | . . . . . . Feedback Blocked . | . . . . . . Robot Schematics Acquired . | . . . . . . Robots Built . | . . . . . . Authchips . | . . . . . . Time . | . . . . . . Total Robot Build Rating . | . . . . . . Part Schematics Acquired . | . . . . . . Parts Built . | . . . . . . Authchips . | . . . . . . Time . | . . . . . . Total Part Build Rating . | . . . . . . Parts Repaired . | . . . . . . Time . | . . . . . . Parts Recycled . | . . . . . . Recycled Matter . | . . . . . . Retrieved Matter . | . . . . . . Retrieved Components . | . . . . . . Parts Scanalyzed . | . . . . . . Part Schematics Acquired . | . . . . . . Parts Damaged . | . . . . . . Bothacking | -11 -10 -10 -9 -9 -8 ------------ Run | Scr Mat Min Mat Min Mat Used RIF Installer . | . . . . . . Robots Hacked . | . . . . . . Non-combat . | . . . . . . Combat . | . . . . . . Robot Hacks Applied . | . . . . . . Relay Couplers Released . | . . . . . . Fabnet Peak Effective % . | . . . . . . Robots Rewired . | . . . . . . Allies Hacked . | . . . . . . Hacks Repelled . | . . . . . . Allies | -11 -10 -10 -9 -9 -8 -------- Run | Scr Mat Min Mat Min Mat Total Allies 4 | . . 3 . 1 . Largest Group 3 | . . 3 3 1 . Highest-Rated Group 40 | . . 40 40 31 . Highest-Rated Ally 31 | . . 16 16 31 . Total Orders . | . . . . . . Ally Attacks 39 | . . 9 23 7 . Total Damage 387 | . . 76 247 64 . Kills 7 | . . 2 3 2 . Allies Corrupted . | . . . . . . Allies Melted . | . . . . . . Intel | -11 -10 -10 -9 -9 -8 ------- Run | Scr Mat Min Mat Min Mat Robot Analysis Total 2 | . . . 2 . . Derelict Logs Recovered 1 | . . 1 . . . Drone Launches . | . . . . . . Drone Recoveries . | . . . . . . Exploration | -11 -10 -10 -9 -9 -8 ------------- Run | Scr Mat Min Mat Min Mat Turns Passed 2683 | 37 745 876 406 309 310 Spaces Moved 1656 | 21 391 525 171 267 281 Core 170 | . . . . . 170 Treads 380 | . . 366 13 . 1 Legs 41 | 21 20 . . . . Wheels 1065 | . 371 159 158 267 110 Hover . | . . . . . . Flight . | . . . . . . Fastest Speed 50 | 120 105 95 80 86 50 Average Speed 114 | 120 127 143 99 96 66 Slowest Speed 250 | 120 135 240 160 101 250 Overloaded Moves . | . . . . . . Propulsion Burnouts . | . . . . . . Robots Hopped . | . . . . . . Cave-ins Triggered . | . . . . . . Exploration Rate (%) 45 | 2 73 85 33 62 18 Regions Visited 5 Branch Regions 2 Pre-discovered Areas . | . . . . . . Known Exits Taken 1 | . . . 1 . . Unknown Exits Taken 4 | 1 1 1 . 1 . Scrap Searched 1 | . . 1 . . . Spaces Dug 35 | . . 3 15 . 17 Terrain Destroyed 134 | . . 4 31 71 28 Melee 1 | . . . 1 . . Projectile 9 | . . 4 . . 5 AOE 124 | . . . 30 71 23 Terrain Rammed . | . . . . . . Walls Destroyed . | . . . . . . Machines Disabled . | . . . . . . Actions | -11 -10 -10 -9 -9 -8 --------- Run | Scr Mat Min Mat Min Mat Total 2121 | 26 526 605 313 293 358 Wait 142 | . 37 35 52 . 18 Move 1651 | 20 390 524 170 266 281 Hop . | . . . . . . Pick Up 36 | 2 18 4 6 1 5 Fast Attach 13 | 1 1 2 5 . 4 Attach 22 | . 4 4 8 1 5 Detach 4 | . . 1 3 . . Swap 40 | . 8 8 14 8 2 Drop 25 | . 8 5 5 2 5 Fire 185 | 3 60 22 49 15 36 Melee 1 | . . . 1 . . Ram 2 | . . . . . 2 Kick . | . . . . . . Crush . | . . . . . . Escape Stasis . | . . . . . . Rewire . | . . . . . . Trap . | . . . . . . Miscellaneous . | . . . . . . Route ------- -11/Scrapyard -10/Materials (discovered 3 exits: *Mat x2 / [*Min]) -10/Mines (discovered 2 exits: *Mat x2) -9/Materials (discovered 4 exits: [*Mat] / *Min x2 / [*Sto]) -9/Mines (discovered 2 exits: [*Mat x2]) -8/Materials History --------- Turn | Location | Event 1 | -11/Scrapyard | Discovered new exit (range 1) 38 | -11/Scrapyard | Entered Materials 317 | -10/Materials | Build established: Mutant 353 | -10/Materials | Discovered new exit (range 3) 517 | -10/Materials | Discovered new exit (range 9) 649 | -10/Materials | Discovered new exit (range 16) 783 | -10/Materials | Entered Mines 821 | -10/Mines | A weapon hastily lodged in a ceiling crevice suddenly fell to the ground 868 | -10/Mines | Core integrity fell below 50% 910 | -10/Mines | Lost 3 parts (1n2w) 1255 | -10/Mines | Discovered new exit (range 3) 1346 | -10/Mines | Assisted by bots powering up and referring to "LRC-V3" 1452 | -10/Mines | Discovered new exit (range 4) 1545 | -10/Mines | Received a Rocket Launcher from a helpful Derelict 1659 | -10/Mines | Entered Materials 1659 | -9/Materials | Accompanied by 3 allies 1659 | -9/Materials | Evolved 2 slots: Propulsion x1, Utility x1 1660 | -9/Materials | Identified exit to Mines 1784 | -9/Materials | Discovered new exit (range 16) 2043 | -9/Materials | Discovered new exit (range 8) 2065 | -9/Materials | Entered Mines 2077 | -9/Mines | Core integrity fell below 50% 2085 | -9/Mines | Discovered new exit (range 5) 2134 | -9/Mines | Received a Mining Laser from a helpful Derelict 2144 | -9/Mines | Build established: Scavenger-Mutant 2345 | -9/Mines | Assembled infested the area 2368 | -9/Mines | Discovered new exit (range 6) 2374 | -9/Mines | Entered Materials 2374 | -8/Materials | Evolved 2 slots: Utility x2 2563 | -8/Materials | Released all parts (3) 2591 | -8/Materials | Lost 7 parts (4n1u2w) 2618 | -8/Materials | Core integrity fell below 50% 2650 | -8/Materials | Core integrity fell below 20% 2684 | -8/Materials | Destroyed by S-10 Pest with Light Assault Rifle Last Messages --------------- 02563_ Released Lrg. Storage Unit. 02563_ Released Adv. Beam Rifle. 02563_ Acquired 3 matter. 02565_ U-05 Engineer lays Concrete. 02566_ U-05 Engineer builds a Wall. 02566_ U-05 Engineer lays Concrete. 02568_ U-05 Engineer builds a Wall. 02570_ Acquired 10 matter. 02570_ U-05 Engineer lays Concrete. 02572_ G-47 Trooper heat damages Lgt. Nuclear Core, Aluminum Leg. 02592_ Acquired Lrg. Storage Unit. 02597_ Dropped Sml. Laser. 02632_ Acquired Imp. Medium Laser. 02639_ Dropped Imp. Medium Laser. 02641_ Acquired Huge Storage Unit. 02658_ Slammed into K-01 Serf. 02658_ K-01 Serf knocked back. 02661_ Slammed into K-01 Serf. 02670_ Acquired Adv. Treads. 02677_ S-10 Pest destroyed. Map ----- +----------------------------------------------------+ | #???????????????????????????????????????????????? | | #???????????????????????????????????????????????? | | #???????????????????????????????????????????????? | | #???????????????????????????????????????????????? | | ####????????????????????????????????????????????? | | # ##?##????????????????????????????????????????? | | # #[##/###??????????????????????????????????????? | | # [[ ]!!!#??????????????????????????????????????? | | # %"%"[/#??????????????????????????????????????? | | # %%" #??????????????????????????????????????? | | # ""% #??????????????????????????????????????? | | # ""% +??????????????????????????????????????? | | %# ""% ##?????????????????????????????????????? | | + """ #??????????????????????????????????????? | | # %%%% #??????????????????????????????????????? | | # %#??????????????????????????????????????? | | ## ######??????????????????????????????????????? | | ####???????????????????????????????????????????? | | = ##?????????????????????????????????????????????? | | ##???????????????????#####?????????????????????? | | ##???????????????????# #?????????????????????? | | ##???????????????????# !#?????????????????????? | | ####???????????????????#[ #?????????????????????? | | ##???????????????????# #?????????????????????? | | !##???????????????????# #?????????????????????? | | ##????????###+###????# @ #?????????????????????? | | " ##????????# #????#sss#??????# #????????????? | | " ########### " #######s## #??????????? | | " / "T s +??????????? | | ########### ########## #??????????? | | ####????????# =#?????????? #??###????????????? | | ####????????###/###??????????? #?????????????????? | | ????????????? ???????????????????????????????? | | ???????????? ??????????????????????????????? | | ??????????? ?????????????????????????????? | | ??????????# #????????????????????????????? | | ??????????# ! #????????????????????????????? | | ??????????# #????????????????????????????? | | ??????????# #????????????????????????????? | | ??????????# #????????????????????????????? | | ??????????#####+#####????????????????????????????? | | ?????????????????????????????????????????????????? | | ?????????????????????????????????????????????????? | | ?????????????????????????????????????????????????? | | ?????????????????????????????????????????????????? | | ?????????????????????????????????????????????????? | | ?????????????????????????????????????????????????? | | ?????????????????????????????????????????????????? | | ?????????????????????????????????????????????????? | | ?????????????????????????????????????????????????? | +----------------------------------------------------+ Best States ------------- Heat Dissipation 42 Energy Generation 14 Energy Capacity 265 Matter Stores 300 Matter Capacity 300 Sight Range 16 Terrain Scan Density 85 Armor Coverage 150 Evasion (%) 55 Recoil Reduction 2 Item Schematics ----------------- None Robot Schematics ------------------ None Fabricated ------------ Nothing Alien Tech Used ----------------- None Achievements -------------- None Challenges ------------ None Game ------ Seed CoolingHellfireMallet Manual? 0 Play Time 00:37:47 Cumulative 195.8 hours Start 2022.07.09 @ 10:46:42 End 2022.07.24 @ 09:50:42 Sessions 3 Manual Loads 0 Difficulty Rogue Special Mode None Game No. 67 Rogue 67 Adventurer 0 Explorer 0 Win Type - Total 5 Types 4/0/0/1/0/0/0/0/0 Lore% 55 Gallery% 69 Achievement% 52 Wizard Run 0 Options --------- ASCII 0 Keyboard 1 Movement Vi Keybinds 0 Fullscreen 1 Font 18/SmallcapsGlow Map View 76x50 Tactical HUD 1 Map Filters NONE Filters NONE Steam 1 RUN: 362588df-9003-42d4-a16a-185c6c682978